Cogmind - Beta 15 @@@ ROGUE MODE // 2025.08.22 @ 21:19:53 Player: JuustuToug Result: Destroyed by G-47 Trooper with Particle Gun Performance ------------- Evolutions (2) 1000 Regions Visited (9) 1800 Robots Destroyed (94) 470 Value Destroyed (4084) 4084 Prototype IDs (32) 640 Alien Tech Used (0) 0 Bonus (1812) 1812 TOTAL SCORE: 9806 Bonus ------- High Alert Combat Kills 680 Follower Combat Kills 132 Entered Garrisons 200 Used RIF Installer 500 Aligned with FarCom 300 Cogmind --------- Core Integrity 0/550 Matter 264/300 Energy 275/275 System Corruption 0% Temperature Cool (9) Movement Walking (120) Location -8/Materials Parts ------- > --- POWER (1) -------- Deuterium Engine > --- PROPULSION (4) --- Aluminum Leg Aluminum Leg Improved Aluminum Leg Carbon-fiber Leg > --- UTILITY (4) ------ Improved Heat Sink Improved Heat Sink Medium Storage Unit Improved Light Armor Plating > --- WEAPON (2) ------- Heavy Ion Cannon Improved Grenade Launcher > --- INVENTORY (10) --- Improved Ion Engine Light Deuterium Engine Advanced Weight Redist. System Improved Terrain Scanner Relay Coupler [Grunt] (25) Heavy Ion Cannon Heavy Ion Cannon Improved Datajack Katana Peak State ------------ > --- POWER ------------ Light Nuclear Core > --- PROPULSION ------- Aluminum Leg Aluminum Leg Aluminum Leg Improved VTOL Module > --- UTILITY ---------- Medium Storage Unit Machine Analyzer Advanced Visual Processing Unit Light Armor Plating > --- WEAPON ----------- AWS/Thermal > --- INVENTORY -------- Light Ion Engine Light Nuclear Core Improved Flight Unit High-powered Shotgun Enhanced Autogun Enhanced Autogun Assault Cannon Mini Grenade Launcher Datajack Plasma Cutter [Rating: 36] Favorites ----------- Power Deuterium Engine Engine Deuterium Engine Power Core Light Nuclear Core Propulsion Aluminum Leg Leg Aluminum Leg Flight Unit Improved Flight Unit Utility Medium Storage Unit Device ECM Suite Storage Medium Storage Unit Processor Machine Analyzer Protection Light Armor Plating Weapon Assault Cannon Energy Gun AWS/Thermal Energy Cannon Heavy Ion Cannon Ballistic Gun Assault Rifle Ballistic Cannon Assault Cannon Launcher Improved Grenade Launcher Slashing Weapon Katana Build | -11 -10 -10 -9 -9 -9 -8 -8 -8 -8 ------- Run | Yrd Mat Min Mat Min Exi Min Mat Gar Mat Slots Evolved 4 | . . . 2 . . . 2 . . Power . | . . . . . . . . . . Propulsion 2 | . . . 1 . . . 1 . . Utility 2 | . . . 1 . . . 1 . . Weapon . | . . . . . . . . . . Parts Attached 93 | 6 1 3 10 . 2 4 32 31 4 Power 10 | 1 . 1 1 . . 1 4 2 . Engine 7 | 1 . 1 1 . . . 2 2 . Core 3 | . . . . . . 1 2 . . Reactor . | . . . . . . . . . . Propulsion 36 | 2 . . 3 . . 2 12 15 2 Treads . | . . . . . . . . . . Leg 34 | 2 . . 3 . . 2 10 15 2 Wheel . | . . . . . . . . . . Hover . | . . . . . . . . . . Flight 2 | . . . . . . . 2 . . Utility 26 | 1 1 1 3 . 1 1 9 7 2 Device 12 | . 1 1 1 . . . 5 3 1 Storage 2 | 1 . . 1 . . . . . . Processor 2 | . . . . . 1 . 1 . . Hackware . | . . . . . . . . . . Protection 10 | . . . 1 . . 1 3 4 1 Artifact . | . . . . . . . . . . Weapon 21 | 2 . 1 3 . 1 . 7 7 . Energy Gun 5 | 1 . . . . 1 . 2 1 . Energy Cannon 5 | . . . . . . . 1 4 . Ballistic Gun 8 | 1 . 1 3 . . . 2 1 . Ballistic Cannon 1 | . . . . . . . 1 . . Launcher 1 | . . . . . . . 1 . . Special Weapon . | . . . . . . . . . . Impact Weapon . | . . . . . . . . . . Slashing Weapon 1 | . . . . . . . . 1 . Piercing Weapon . | . . . . . . . . . . Special Melee Weapon . | . . . . . . . . . . Unidentified Prototypes 3 | . . . 1 . . . 2 . . Parts Lost 28 | . . 1 5 . . . 5 15 2 Power 2 | . . 1 . . . . . 1 . Propulsion 13 | . . . 2 . . . 3 8 . Utility 9 | . . . 2 . . . 1 5 1 Weapon 4 | . . . 1 . . . 1 1 1 Highest Loss Streak 6 | . . 1 2 . . . 2 6 2 To Critical Strikes . | . . . . . . . . . . Average Backups 8 | 1 2 5 6 10 9 8 9 9 9 Power 1 | . 1 1 1 1 1 1 2 1 1 Propulsion . | . . 1 . 1 1 . . . . Utility 1 | . . . . 2 1 1 1 1 3 Weapon 4 | . 1 2 4 5 4 4 4 4 3 Tool/Special . | . . . . . . . . . . Unused Backups 20 | . . 1 . 2 1 . 7 2 7 Power 5 | . . . . . . . 2 . 3 Propulsion . | . . . . . . . . . . Utility 4 | . . . . . . . . 1 3 Weapon 8 | . . 1 . 2 1 . 3 1 . Tool/Special 3 | . . . . . . . 2 . 1 Average Slot Usage (%) 93 | . 86 100 92 88 76 88 93 95 100 Engine 7 | . 14 14 11 11 11 . 4 8 9 Core 2 | . . . . . . 10 4 . . Leg 32 | . 28 28 28 33 33 33 31 33 36 Device 12 | . 1 14 13 11 11 . 11 17 13 Storage 9 | . 14 14 11 11 11 11 9 9 9 Processor 2 | . . . . . 4 11 5 . . Protection 8 | . . . 5 . . 10 9 8 13 Energy Gun 3 | . 14 2 . . 4 11 3 1 . Energy Cannon 3 | . . . . . . . 2 7 10 Ballistic Gun 6 | . 14 25 22 22 . . 6 1 7 Ballistic Cannon 2 | . . . . . . . 3 5 . Peak Build Rating 36 | 6 7 7 14 13 26 28 36 34 32 Average Rating 23 | 4 6 6 9 13 16 27 26 27 29 On Entrance 15 | . 6 7 7 13 13 26 28 27 31 Naked Turns . | . . . . . . . . . . Heaviest Build 45 | 11 12 15 23 20 24 26 42 45 40 Greatest Support 53 | 20 20 20 30 30 30 30 46 53 53 Greatest Overweight (x) 2 | . . . 2 . . . 1 1 . Average Overweight (x) . | . . . . . . . . . . Largest Inventory Capacity 10 | 8 8 8 10 10 10 10 10 10 10 Average Capacity 9 | 6 8 8 8 10 10 10 10 10 10 Most Carried 10 | 3 6 7 10 10 10 10 10 10 10 Average Carried 8 | 1 2 5 6 9 9 8 9 9 9 Final Capacity 10 | 8 8 8 10 10 10 10 10 10 10 Final Carried 10 | 2 5 6 10 10 8 8 10 10 9 Class Distribution -------------------- 81% | Scavenger-Mutant 13% | Mutant 4% | Scavenger-Skirmisher Dominant Class ---------------- Mutant | -10/Materials Mutant | -10/Mines Scavenger-Mutant | -9/Materials Scavenger-Mutant | -9/Mines Scavenger-Mutant | -9/Exiles Scavenger-Mutant | -8/Mines Scavenger-Mutant | -8/Materials Scavenger-Mutant | -8/Garrison Scavenger-Mutant | -8/Materials Resources | -11 -10 -10 -9 -9 -9 -8 -8 -8 -8 ----------- Run | Yrd Mat Min Mat Min Exi Min Mat Gar Mat Matter Collected 2880 | 229 80 88 189 . . 87 1093 891 223 Remotely 855 | . . . 70 . . . 604 181 . Salvage Created 3160 | . 80 76 93 . . 357 1348 883 323 Parts 147 | . 5 5 7 . . 6 71 39 14 Haulers Intercepted 2 | . . . . . . . 2 . . Recyclers Shooed 2 | . . . 1 . . . 1 . . Parts Field Recycled . | . . . . . . . . . . Retrieved Matter . | . . . . . . . . . . Parts Self-Destructed . | . . . . . . . . . . Prevented . | . . . . . . . . . . Kills | -11 -10 -10 -9 -9 -9 -8 -8 -8 -8 ------- Run | Yrd Mat Min Mat Min Exi Min Mat Gar Mat Combat Hostiles Destroyed 80 | . 2 2 4 . . 7 32 29 4 Guns 35 | . 2 2 4 . . 7 16 4 . Cannons 25 | . . . . . . . 5 16 4 AOE 20 | . . . . . . . 11 9 . Classes Destroyed 11 | . 1 2 . . . 2 6 . . Builder 3 | . . . . . . . 2 . 1 Tunneler 1 | . . . . . . . 1 . . Hauler 2 | . . . . . . . 2 . . Recycler 4 | . . . . . . . 2 . 2 Watcher 4 | . . . . . . . 4 . . Swarmer 18 | . . 1 3 . . . 7 7 . Grunt 38 | . 2 . . . . 4 17 14 1 Brawler 3 | . . . . . . 2 . 1 . Duelist 4 | . . . . . . . 2 1 1 Sentry 11 | . . 1 1 . . . 6 1 2 Hunter 6 | . . . . . . 1 . 5 . Best Kill Streak 14 | . 1 1 3 . . 3 14 4 5 Combat Bots Only 10 | . 1 1 3 . . 3 10 4 2 Max Kills in Single Turn 3 | . 1 1 1 . . 1 3 2 1 Gunslinging . | . . . . . . . . . . Exploded 3 | . . . . . . . 3 2 . Melee . | . . . . . . . . . . Uniques/NPCs Destroyed . | . . . . . . . . . . Combat | -11 -10 -10 -9 -9 -9 -8 -8 -8 -8 -------- Run | Yrd Mat Min Mat Min Exi Min Mat Gar Mat Hostile Shots Fired 559 | . 10 59 78 1 . 18 188 176 29 Missed 177 | . 5 25 27 1 . 7 60 45 7 Hits 382 | . 5 34 51 . . 11 128 131 22 Melee 15 | . . . . . . . 3 9 3 Projectile 367 | . 5 34 51 . . 11 125 122 19 Critical Strikes 14 | . . 2 1 . . . 5 6 . Damage Taken 5352 | . 56 359 499 . . 173 1924 1991 350 Core 759 | . 11 53 107 . . 26 231 237 94 Absorbed by Shields . | . . . . . . . . . . Redirected to Shielding 74 | . . . . . . . . 40 34 Regen/Repaired (Parts) 65 | . . . . . . . . . 65 Core Remaining (%) 80 | 100 . 74 . . . 66 . . . Volleys Fired 285 | . 13 13 23 . . . 82 137 17 Largest 2 | . 2 2 2 . . . 2 2 2 Hottest 138 | . 60 60 45 . . . 138 130 130 Shots Fired 587 | . 24 26 46 1 . 36 201 220 33 Gun 357 | . 24 26 46 1 . 36 179 34 11 Cannon 207 | . . . . . . . 12 174 21 Launcher 23 | . . . . . . . 10 12 1 Special . | . . . . . . . . . . Kinetic 300 | . 13 21 46 1 . . 136 72 11 Thermal 264 | . 11 5 . . . 36 55 136 21 Explosive 23 | . . . . . . . 10 12 1 Electromagnetic . | . . . . . . . . . . Robot Hit Streak 13 | . 4 6 10 . . 13 11 10 11 Robot Miss Streak 5 | . 2 4 3 . . 1 5 4 1 Penetration Max . | . . . . . . . . . . Secondary Targets 1 | . . . 1 . . . . . . Max Gunslinging Chain 1 | . . . 1 . . . . . . Autonomous 85 | . . . . . . 36 49 . . Shots Hit Robots 363 | . 15 12 33 . . 31 140 106 26 Core Hits 154 | . 4 4 7 . . 10 71 50 8 Critical Kills 1 | . . . . . . . 1 . . Critical Parts Destroyed 2 | . . . 1 . . . 1 . . Critical Strikes 5 | . . . 2 . . . 2 1 . Destroy 4 | . . . 2 . . . 2 . . Blast 1 | . . . . . . . . 1 . Melee Attacks 16 | . . . . . . . . 16 . Impact . | . . . . . . . . . . Slashing 16 | . . . . . . . . 16 . Piercing . | . . . . . . . . . . Sneak Attacks . | . . . . . . . . . . Combat Hostiles . | . . . . . . . . . . Follow-up Attacks . | . . . . . . . . . . Damage Inflicted 10395 | . 182 154 397 . . 899 4430 3554 779 Guns 4999 | . 182 154 397 . . 899 2945 275 147 Cannons 2889 | . . . . . . . 151 2202 536 Explosions 2507 | . . . . . . . 1334 1077 96 Melee . | . . . . . . . . . . Ramming . | . . . . . . . . . . Kinetic 3602 | . 125 107 397 . . . 1871 955 147 Thermal 4408 | . 57 47 . . . 899 1347 1522 536 Explosive 2385 | . . . . . . . 1212 1077 96 Electromagnetic . | . . . . . . . . . . Impact . | . . . . . . . . . . Slashing . | . . . . . . . . . . Piercing . | . . . . . . . . . . Highest Corruption 1 | . . . 1 1 1 1 . . . Average Corruption 1 | . . . 1 1 1 1 . . . Corruption Purged . | . . . . . . . . . . Corruption Blocked . | . . . . . . . . . . Effects 8 | . . . 1 3 1 3 . . . Message Errors 2 | . . . . . . 2 . . . Matter Fused 1 | . . . . 1 . . . . . Heat Flow Errors 1 | . . . . . 1 . . . . Parts Rejected 1 | . . . 1 . . . . . . Data Loss (minor) 1 | . . . . 1 . . . . . Data Loss (major) 1 | . . . . . . 1 . . . Misfires 1 | . . . . 1 . . . . . Overload Shots . | . . . . . . . . . . Overflow Damage 203 | . . . . . . . 109 80 14 Projectiles 53 | . . . . . . . . 39 14 Explosions 150 | . . . . . . . 109 41 . Melee . | . . . . . . . . . . Knockbacks 9 | . . . . . . . . 9 . Impact . | . . . . . . . . . . Kinetic 8 | . . . . . . . . 8 . Secondary 1 | . . . . . . . . 1 . Self-Inflicted Damage 21 | . . . . . . . 5 16 . Shots 2 | . . . . . . . 1 1 . Rammed . | . . . . . . . . . . Targets Rammed . | . . . . . . . . . . Kicked . | . . . . . . . . . . Crushed . | . . . . . . . . . . Highest Temperature 359 | . 24 21 . . 171 . 195 359 81 Average Temperature 58 | . 10 12 . . 91 . 46 75 29 Received Heat Transfer 2178 | . 30 108 96 . . 45 954 837 108 Effects 2 | . . . . . . . . 2 . Energy Bleed 1 | . . . . . . . . 1 . Interference 1 | . . . . . . . . 1 . Siege Activations . | . . . . . . . . . . Martial Activations . | . . . . . . . . . . Shielding Activations . | . . . . . . . . . . Robots Disrupted . | . . . . . . . . . . Combat Hostiles . | . . . . . . . . . . Robots Corrupted . | . . . . . . . . . . Combat Hostiles . | . . . . . . . . . . Parts Fried . | . . . . . . . . . . Impact Corruptions . | . . . . . . . . . . Robots Melted . | . . . . . . . . . . Combat Hostiles . | . . . . . . . . . . Parts Melted 8 | . . . . . . 2 1 1 4 Heat Transferred 6041 | . 125 100 . . . 1147 1691 2238 740 Parts Sabotaged 11 | . . . . . . . . 11 . Parts Stolen . | . . . . . . . . . . Parts Stripped . | . . . . . . . . . . Power Chain Reactions . | . . . . . . . . . . Alert | -11 -10 -10 -9 -9 -9 -8 -8 -8 -8 ------- Run | Yrd Mat Min Mat Min Exi Min Mat Gar Mat Maximum Alert Level 5 | . . . . . . . 2 5 3 Low Security (%) 54 | 100 100 100 100 100 . 100 82 . . Level 1 6 | . . . . . . . 12 8 . Level 2 9 | . . . . . . . 4 25 . Level 3 16 | . . . . . . . . 30 100 Level 4 9 | . . . . . . . . 27 . Level 5 2 | . . . . . . . . 8 . High Security . | . . . . . . . . . . Max Security . | . . . . . . . . . . Peak Influence 1750 | . 40 76 90 30 . 94 511 1750 852 Initial 852 | . . 7 3 23 . . . 329 852 Average 412 | . 15 22 51 5 . 30 118 935 780 Influence Increases 3594 | . 50 188 280 30 . 250 1059 1571 166 Destroy 0b10 Robot/C 1800 | . 40 140 180 . . 140 640 580 80 Destroy 0b10 Robot/NC 80 | . . 5 . . . . 55 5 15 Destroy Leader 292 | . 10 20 30 . . 30 152 20 30 Allied During Kill 33 | . . 23 10 . . . . . . Successful Hack 99 | . . . 44 . . . 38 14 3 Disable Machine 105 | . . . 15 . . . 75 . 15 Anti-Garrison Action 700 | . . . . . . . . 700 . Destroy Structure 290 | . . . 1 . . 5 84 192 8 Lose Combat Pursuer 195 | . . . . 30 . 75 15 60 15 Influence Decreases 2802 | . 30 198 230 70 20 250 552 328 1124 Entered New Map 1153 | . . 13 7 37 20 . . 178 898 Time Decay 1329 | . 30 155 143 33 . 250 512 . 206 Lost Part 260 | . . 10 40 . . . 40 150 20 Lost Ally 60 | . . 20 40 . . . . . . Squads Dispatched 12 | . 2 . 1 . . . 7 . 2 Investigation 6 | . 1 . 1 . . . 3 . 1 Extermination . | . . . . . . . . . . Reinforcement 6 | . 1 . . . . . 4 . 1 Assault . | . . . . . . . . . . Garrison . | . . . . . . . . . . Intercept . | . . . . . . . . . . Searches Triggered . | . . . . . . . . . . Construction Impeded 1 | . . . . . . . 1 . . Haulers Reinforced . | . . . . . . . . . . Active Scanning Responses . | . . . . . . . . . . Cargo Convoy Interrupts . | . . . . . . . . . . Stealth | -11 -10 -10 -9 -9 -9 -8 -8 -8 -8 --------- Run | Yrd Mat Min Mat Min Exi Min Mat Gar Mat Distress Signals 12 | . 1 . 1 . . . 7 . 3 Communications Jammed . | . . . . . . . . . . Distress Signals . | . . . . . . . . . . Times Spotted 144 | . 4 8 10 1 . 10 56 45 10 Peak Tracking Total 8 | . 3 3 3 2 . 3 6 8 6 Tactical Retreats 26 | . . . . 1 . 3 9 12 1 Traps | -11 -10 -10 -9 -9 -9 -8 -8 -8 -8 ------- Run | Yrd Mat Min Mat Min Exi Min Mat Gar Mat Traps Triggered 9 | . 1 . . . . . 1 7 . Indirectly . | . . . . . . . . . . Trap Hack Attempts . | . . . . . . . . . . Triggered . | . . . . . . . . . . Disarmed . | . . . . . . . . . . Reprogrammed . | . . . . . . . . . . Reused . | . . . . . . . . . . Traps Extracted . | . . . . . . . . . . Installed . | . . . . . . . . . . Triggered . | . . . . . . . . . . Machines | -11 -10 -10 -9 -9 -9 -8 -8 -8 -8 ---------- Run | Yrd Mat Min Mat Min Exi Min Mat Gar Mat Machines Disabled 13 | . . . 1 . . . 5 6 1 Max in Single Turn 3 | . . . 1 . . . 3 1 1 Garrison Relay 4 | . . . . . . . . 4 . Machines Repaired . | . . . . . . . . . . Machines Dismantled . | . . . . . . . . . . Machines Sabotaged . | . . . . . . . . . . Overloaded Fab Kills . | . . . . . . . . . . Hacking | -11 -10 -10 -9 -9 -9 -8 -8 -8 -8 --------- Run | Yrd Mat Min Mat Min Exi Min Mat Gar Mat Machines Accessed 23 | . 1 . 3 . 1 . 9 3 6 Terminals 16 | . 1 . 2 . . . 6 3 4 Fabricators . | . . . . . . . . . . Repair Stations 1 | . . . . . . . . . 1 Recycling Units 2 | . . . 1 . . . 1 . . Scanalyzers 2 | . . . . . . . 1 . 1 Garrison Access 1 | . . . . . . . 1 . . Total Hacks 69 | . 2 . 8 . 1 . 35 6 17 Successful 39 | . 1 . 4 . 1 . 23 1 9 Failed 30 | . 1 . 4 . . . 12 5 8 Catastrophic 6 | . . . . . . . 1 2 3 Database Lockouts . | . . . . . . . . . . Manual 11 | . 1 . . . 1 . 6 . 3 Terminals 39 | . 2 . 5 . . . 14 6 12 Fabricators . | . . . . . . . . . . Repair Stations 2 | . . . . . . . . . 2 Recycling Units 5 | . . . 3 . . . 2 . . Scanalyzers 20 | . . . . . . . 17 . 3 Garrison Access 2 | . . . . . . . 2 . . Terminal Hacks 14 | . . . 3 . 1 . 4 1 5 Prototype ID Bank 2 | . . . 1 . . . 1 . . Branch Access Points 1 | . . . 1 . . . . . . Emergency Access Points 2 | . . . . . . . . 1 1 Terminal Index 2 | . . . 1 . . . . . 1 Recycling Unit Index 1 | . . . . . . . 1 . . Alert Level 2 | . . . . . . . 1 . 1 Security Status 2 | . . . . . . . 1 . 1 Zone Layout 1 | . . . . . . . . . 1 Proto ID Catalog 1 | . . . . . 1 . . . . Fabricator Hacks . | . . . . . . . . . . Repair Station Hacks 2 | . . . . . . . . . 2 Scan Component 1 | . . . . . . . . . 1 Repair 1 | . . . . . . . . . 1 Recycling Unit Hacks 2 | . . . 1 . . . 1 . . Report Inventory 1 | . . . 1 . . . . . . Retrieve Components 1 | . . . . . . . 1 . . Scanalyzer 17 | . . . . . . . 15 . 2 Insert Component 8 | . . . . . . . 7 . 1 Analyze 9 | . . . . . . . 8 . 1 Garrison Access Hacks 2 | . . . . . . . 2 . . Unlock Access 1 | . . . . . . . 1 . . Coupler Status 1 | . . . . . . . 1 . . Unauthorized Hacks 2 | . 1 . . . . . 1 . . Terminals 2 | . 1 . . . . . 1 . . Assimilate 2 | . 1 . . . . . 1 . . Fabricators . | . . . . . . . . . . Repair Stations . | . . . . . . . . . . Recycling Units . | . . . . . . . . . . Scanalyzers . | . . . . . . . . . . Garrison Access . | . . . . . . . . . . Data Cores Recovered . | . . . . . . . . . . Used . | . . . . . . . . . . Hacking Detections 20 | . 1 . 3 . . . 8 3 5 Full Trace Events 7 | . . . 1 . . . 3 2 1 Feedback Events 1 | . . . 1 . . . . . . Corruption 1 | . . . 1 . . . . . . Feedback Blocked . | . . . . . . . . . . Robot Schematics Acquired . | . . . . . . . . . . Robots Built . | . . . . . . . . . . Authchips . | . . . . . . . . . . Time . | . . . . . . . . . . Total Robot Build Rating . | . . . . . . . . . . Part Schematics Acquired 8 | . . . . . . . 7 . 1 Parts Built . | . . . . . . . . . . Authchips . | . . . . . . . . . . Time . | . . . . . . . . . . Total Part Build Rating . | . . . . . . . . . . Parts Repaired 1 | . . . . . . . . . 1 Time 38 | . . . . . . . . . 38 Parts Recycled . | . . . . . . . . . . Recycled Matter . | . . . . . . . . . . Retrieved Matter . | . . . . . . . . . . Retrieved Components 10 | . . . . . . . 10 . . Parts Scanalyzed 8 | . . . . . . . 7 . 1 Part Schematics Acquired 8 | . . . . . . . 7 . 1 Parts Damaged 1 | . . . . . . . 1 . . Bothacking | -11 -10 -10 -9 -9 -9 -8 -8 -8 -8 ------------ Run | Yrd Mat Min Mat Min Exi Min Mat Gar Mat Used RIF Installer 1 | . . . . . . . . 1 . Robots Hacked . | . . . . . . . . . . Non-combat . | . . . . . . . . . . Combat . | . . . . . . . . . . Robot Hacks Applied . | . . . . . . . . . . Relay Couplers Released 18 | . . . . . . . . 18 . Machine Destruction 18 | . . . . . . . . 18 . Fabnet Peak Effective % . | . . . . . . . . . . Robots Rewired . | . . . . . . . . . . Allies Hacked . | . . . . . . . . . . Hacks Repelled . | . . . . . . . . . . Allies | -11 -10 -10 -9 -9 -9 -8 -8 -8 -8 -------- Run | Yrd Mat Min Mat Min Exi Min Mat Gar Mat Total Allies 3 | . . 3 . . . . . . . Largest Group 3 | . . 3 2 . . . . . . Highest-Rated Group 40 | . . 40 32 . . . . . . Highest-Rated Ally 16 | . . 16 16 . . . . . . Total Orders . | . . . . . . . . . . Ally Attacks 41 | . . 28 13 . . . . . . Total Damage 292 | . . 178 114 . . . . . . Kills 11 | . . 6 5 . . . . . . Allies Corrupted . | . . . . . . . . . . Allies Melted . | . . . . . . . . . . Intel | -11 -10 -10 -9 -9 -9 -8 -8 -8 -8 ------- Run | Yrd Mat Min Mat Min Exi Min Mat Gar Mat Active Infowar (turns) 4461 | . . . . . 112 716 2144 1489 . Optics 500 | . . . . . . . 500 . . Machine Analysis 1625 | . . . . . 112 716 797 . . ECM 2758 | . . . . . . . 1269 1489 . Robot Analysis Total . | . . . . . . . . . . Derelict Logs Recovered 3 | . . 1 . 2 . . . . . Drone Launches . | . . . . . . . . . . Drone Recoveries . | . . . . . . . . . . Exploration | -11 -10 -10 -9 -9 -9 -8 -8 -8 -8 ------------- Run | Yrd Mat Min Mat Min Exi Min Mat Gar Mat Turns Passed 7284 | 52 116 569 308 217 258 716 2216 2395 437 Spaces Moved 4056 | 36 55 413 174 168 211 502 1058 1240 199 Core 7 | 7 . . . . . . . . . Treads . | . . . . . . . . . . Legs 4049 | 29 55 413 174 168 211 502 1058 1240 199 Wheels . | . . . . . . . . . . Hover . | . . . . . . . . . . Flight . | . . . . . . . . . . Fastest Speed 50 | 50 120 120 120 120 120 120 120 110 120 Average Speed 122 | 106 120 120 124 120 120 120 122 126 120 Slowest Speed 260 | 120 120 120 260 120 120 120 190 190 120 Overloaded Moves . | . . . . . . . . . . Propulsion Burnouts . | . . . . . . . . . . Robots Hopped . | . . . . . . . . . . Potential Cave-ins . | . . . . . . . . . . Cave-ins Triggered . | . . . . . . . . . . Exploration Rate (%) 43 | 4 14 68 15 31 60 68 63 96 19 Regions Visited 9 Branch Regions 4 Pre-discovered Areas . | . . . . . . . . . . Known Exits Taken 5 | . . 1 1 1 . 1 1 . . Unknown Exits Taken 3 | 1 1 . . . 1 . . . . Scrap Searched 2 | . . 1 . . . 1 . . . Spaces Dug 12 | . . . . . . . 5 7 . Terrain Destroyed 231 | . . . . . . 5 96 123 7 Melee 7 | . . . . . . . . 7 . Projectile 23 | . . . . . . 5 13 5 . AOE 201 | . . . . . . . 83 111 7 Terrain Rammed . | . . . . . . . . . . Walls Destroyed . | . . . . . . . . . . Machines Disabled . | . . . . . . . . . . Actions | -11 -10 -10 -9 -9 -9 -8 -8 -8 -8 --------- Run | Yrd Mat Min Mat Min Exi Min Mat Gar Mat Total 5855 | 49 81 461 225 184 217 615 1844 1813 366 Wait 1185 | . 9 25 3 13 2 102 598 301 132 Move 4048 | 35 54 412 173 167 210 501 1058 1239 199 Hop . | . . . . . . . . . . Pick Up 106 | 8 4 5 12 2 . 4 33 32 6 Fast Attach 13 | . . . 2 . 1 . 4 6 . Attach 50 | 6 1 1 5 . 1 . 11 23 2 Detach . | . . . . . . . . . . Swap 74 | . . 2 4 . . 4 28 31 5 Drop 68 | . . 3 3 2 3 4 30 18 5 Fire 285 | . 13 13 23 . . . 82 137 17 Melee 16 | . . . . . . . . 16 . Ram . | . . . . . . . . . . Kick . | . . . . . . . . . . Crush . | . . . . . . . . . . Escape Stasis 10 | . . . . . . . . 10 . Rewire . | . . . . . . . . . . Trap . | . . . . . . . . . . Miscellaneous . | . . . . . . . . . . Route ------- -11/Scrapyard -10/Materials -10/Mines (discovered 2 exits: *Mat x2) -9/Materials -9/Mines (discovered 3 exits: *Mat x2 / *Exi) -9/Exiles -8/Mines -8/Materials (discovered 4 exits: [*Fac x2] / [*Sto] / Gar) -8/Garrison (discovered 3 exits: *Mat x3) -8/Materials History --------- Turn | Location | Event 6 | -11/Scrapyard | Discovered new exit (range 16) 53 | -11/Scrapyard | Entered Materials 54 | -10/Materials | Met a group of wandering Federalists 164 | -10/Materials | Discovered new exit (range 5) 169 | -10/Materials | Entered Mines 215 | -10/Mines | Assisted by bots powering up and referring to "LRC-V3" 306 | -10/Mines | Build established: Mutant 387 | -10/Mines | Discovered new exit (range 8) 458 | -10/Mines | Identified exit to Materials 738 | -10/Mines | Entered Materials 738 | -9/Materials | Accompanied by 2 allies 738 | -9/Materials | Evolved 2 slots: Propulsion x1, Utility x1 859 | -9/Materials | Identified exit to Mines 1046 | -9/Materials | Entered Mines 1050 | -9/Mines | Discovered new exit (range 8) 1079 | -9/Mines | Identified exit to Materials 1164 | -9/Mines | Identified exit to Exiles 1258 | -9/Mines | Deemed a non-threat by the Exiles lab entrance 1263 | -9/Mines | Entered Exiles 1294 | -9/Exiles | Met 8R-AWN 1309 | -9/Exiles | Build established: Scavenger-Mutant 1314 | -9/Exiles | Met EX-HEX 1347 | -9/Exiles | Met EX-BIN 1364 | -9/Exiles | Aligned with FarCom system 1365 | -9/Exiles | Given EX-Vault access code 1394 | -9/Exiles | Opened EX-Vault 1402 | -9/Exiles | Found AWS/Thermal 1433 | -9/Exiles | Warned to stay clear of 0b10 Research branches 1466 | -9/Exiles | Met EX-DEC 1509 | -9/Exiles | Discovered new exit (range 12) 1521 | -9/Exiles | Left Exiles lab with AWS/Thermal 1521 | -9/Exiles | Entered Mines 2169 | -8/Mines | Discovered exit to Materials (range 11) 2237 | -8/Mines | Entered Materials 2237 | -8/Materials | Evolved 2 slots: Propulsion x1, Utility x1 2241 | -8/Materials | Discovered new exit (range 13) 2592 | -8/Materials | Discovered new exit (range 9) 2745 | -8/Materials | AWS/Thermal suddenly broke down 2918 | -8/Materials | Build established: Scavenger-Skirmisher 3385 | -8/Materials | Build established: Scavenger-Mutant 3584 | -8/Materials | Discovered new exit (range 13) 4374 | -8/Materials | Destroyed 10 combat bots 4453 | -8/Materials | Identified exit to Garrison 4453 | -8/Materials | Entered Garrison 4615 | -8/Garrison | Triggered checkpoint 4743 | -8/Garrison | Garrison Relay disabled 4932 | -8/Garrison | Triggered checkpoint 4936 | -8/Garrison | Core integrity fell below 50% 4989 | -8/Garrison | Lost 6 parts (1p3n2u) 5372 | -8/Garrison | Discovered new exit (range 10) 5631 | -8/Garrison | Triggered checkpoint 5690 | -8/Garrison | Discovered new exit (range 12) 5777 | -8/Garrison | Garrison Relay disabled 6400 | -8/Garrison | Core integrity fell below 20% 6621 | -8/Garrison | Garrison Relay disabled 6677 | -8/Garrison | Garrison Relay disabled 6710 | -8/Garrison | Discovered new exit (range 12) 6764 | -8/Garrison | Installed Relay Interface Framework 6848 | -8/Garrison | Entered Materials 7047 | -8/Materials | Repaired Imp. Grenade Launcher 7285 | -8/Materials | Destroyed by G-47 Trooper with Particle Gun Last Messages --------------- 07251_ Dropped Aluminum Leg. 07251_ R-06 Scavenger collects Hvy. Assault Rifle. 07253_ Acquired 55 matter. 07254_ W-25 Informer sends out distress signal. 07255_ Acquired 50 matter. 07256_ R-06 Scavenger inserts Sml. Storage Unit into recycling unit. 07259_ R-06 Scavenger inserts Lgt. Treads into recycling unit. 07265_ Connecting with Scanalyzer... >>Insert(Imp. Grenade Launcher) Scanning Imp. Grenade Launcher... Ready to analyze. >>Scanalyze Scanning: Imp. Grenade Launcher... Schematic downloaded. 07285_ Matter Pump disabled. 07285_ U-05 Engineer destroyed. [Achievement: Tester] Map ----- +----------------------------------------------------+ | ?????????????????????????????????????????????????? | | ?????????????????????????????????????????????????? | | ?????????????????????????????????????????????????? | | ?????????????????????????????????????????????????? | | ?????????????????????????????????????????????????? | | ?????????????????????????????????????????????????? | | ?????????????????????????????????????????????????? | | ?????????????????????????????????????????????????? | | ?????????????????????????????w???????????????????? | | ?????????????????????????????????????????????????? | | ???????????????????????? ??????????????????????? | | ???????????????????????? ##????????????????????? | | ??????????????????????## #????????????????????? | | ????????????????#????? ?????????????????????? | | ???????????????? ???? ?????????????????????? | | ????????????????? ?? ?????????????????????? | | ????????????????? g ?????????????????????? | | ?????????????????"" "" | ?????????????????????? | | ?????????????" """ " " =%#?????????????????????? | | ????????????"" """ """ *s#?????????????????????? | | ???????????? s#???????????########??? | | ??????????? #???????????# ! #??? | | ???????????? #???????????# #??? | | ???????????????? [[ #???????????#[ !/ #??? | | ???????????????????? #???????????# ! #??? | | ???????????????????????# @ #???????????# #??? | | ???????????????????????# u #???????????# #??? | | ???????????????????????# ################+####?# | | ???????????????????????# wr # | | ???????????????????????# u ################### # | | ???????????????????????# ########??????????# + | | ????????????????######## r# #??????????# # | | ????????????????# # # """ #??????????# # | | ????????????????# # %# "Y" #??????????# #? | | ????????????????# "" + %+ #??????????# ### | | ???????????????# S"" # # #??????????# ## | | ???????????????## "" # # ! #??????????# ## | | ????????????????# # ########??#+##+#### ## | | ????????????????######## #?????????# # | | ???????????????????????# #?????????# + | | ???????????????????????# ??? # | | ???????????????????????+ #### ######## # | | ???????????????????????# #??# #??????# # | | ???????????????????????# #??# #??????# ## | | ???????????????????????# #??## ######### # | | ???????????????????????# #??######## # # | | ???????????????????????# #?####### # T # + | | ???????????????????????# #?# # # # | | ???????????????????????+ #?# # + # | | ???????????????????????# ??# # ! # # | +----------------------------------------------------+ Best States ------------- Heat Dissipation 59 Energy Generation 14 Energy Capacity 275 Matter Stores 300 Matter Capacity 300 Sight Range 20 Terrain Scan Density 10 ECM Strength 1 Armor Coverage 450 Core Shielding 30 Propulsion Shielding 33 Evasion (%) 55 Kinecelleration 30 Item Schematics ----------------- Plasma Cutter | -8/Materials | Scanalyzed Datajack | -8/Materials | Scanalyzed Mni. Grenade Launcher | -8/Materials | Scanalyzed Mining Claw | -8/Materials | Scanalyzed Hpw. Shotgun | -8/Materials | Scanalyzed Enh. Autogun | -8/Materials | Scanalyzed Ion Engine | -8/Materials | Scanalyzed Imp. Grenade Launcher | -8/Materials | Scanalyzed Robot Schematics ------------------ None Fabricated ------------ Nothing Repaired ---------- Imp. Grenade Launcher | 13% | -8/Materials Alien Tech Used ----------------- None Achievements -------------- Tester Challenges ------------ None Game ------ Seed ThiefGlidesysLance Manual? 0 Play Time 00:58:14 Cumulative 68.4 hours Start 2025.08.22 @ 20:22:21 End 2025.08.22 @ 21:19:53 Sessions 1 Manual Loads 0 Difficulty Rogue Special Mode None Game No. 51 Rogue 51 Adventurer 0 Explorer 0 Win Type - Total 2 Types 1/0/0/1/0/0/0/0/0/0 Lore% 57 Gallery% 50 Achievement% 43 Wizard Run 0 Options --------- Layout 1 ASCII 0 Keyboard 0 Movement Mouse Keybinds 0 Fullscreen 1 Font 24/Smallcaps Map View 50x35 Zoom Use 0% Tactical HUD 1 Map Filters NONE Filters NONE Steam 1 RUN: 555bc6e8-6cc8-405d-a67e-b9d5df5374e5